[Event "Titled Tuesday Blitz May 10 Late 2022"]
[White "Svicevic, Rastko"]
[Black "Della Morte, German"]
[WhiteFideId "916315"]
[BlackFideId "113522"]
[WhiteElo "2132"]
[BlackElo "2363"]
[Result "0-1"]
[Round "03"]
[TimeControl "180+1"]
[Date "2022.05.11"]
[WhiteClock "0:00:09"]
[BlackClock "0:00:18"]

1. d4 {[%clk 0:03:00]}  Nf6 {[%clk 0:02:59]} 2. Bg5 {[%clk 0:03:00]}  d5 {[%clk 0:02:58]} 3. Bxf6 {[%clk 0:02:58]}  gxf6 {[%clk 0:02:59]} 4. e3 {[%clk 0:02:58]}  c5 {[%clk 0:02:59]} 5. g3 {[%clk 0:02:58]}  Qb6 {[%clk 0:02:58]} 6. b3 {[%clk 0:02:56]}  Nc6 {[%clk 0:02:54]} 7. c3 {[%clk 0:02:39]}  e6 {[%clk 0:02:49]} 8. Ne2 {[%clk 0:02:35]}  Bd7 {[%clk 0:02:48]} 9. Bg2 {[%clk 0:02:34]}  O-O-O {[%clk 0:02:48]} 10. Nd2 {[%clk 0:02:24]}  Kb8 {[%clk 0:02:47]} 11. a4 {[%clk 0:02:06]}  Bc8 {[%clk 0:02:44]} 12. dxc5 {[%clk 0:02:03]}  Bxc5 {[%clk 0:02:39]} 13. b4 {[%clk 0:02:03]}  Be7 {[%clk 0:02:33]} 14. O-O {[%clk 0:01:59]}  Ne5 {[%clk 0:02:28]} 15. Nd4 {[%clk 0:01:43]}  h5 {[%clk 0:02:25]} 16. h4 {[%clk 0:01:42]}  Ng4 {[%clk 0:02:16]} 17. a5 {[%clk 0:01:34]}  Qc7 {[%clk 0:02:11]} 18. b5 {[%clk 0:01:17]}  Qxc3 {[%clk 0:01:51]} 19. Qe2 {[%clk 0:01:00]}  Ne5 {[%clk 0:01:35]} 20. Rfc1 {[%clk 0:00:50]}  Qd3 {[%clk 0:01:35]} 21. Qe1 {[%clk 0:00:51]}  Rhg8 {[%clk 0:01:25]} 22. Bf1 {[%clk 0:00:47]}  Qg6 {[%clk 0:01:25]} 23. Rc3 {[%clk 0:00:36]}  Bb4 {[%clk 0:01:18]} 24. N2f3 {[%clk 0:00:29]}  Nxf3+ {[%clk 0:01:09]} 25. Nxf3 {[%clk 0:00:30]}  Bxc3 {[%clk 0:01:06]} 26. Qxc3 {[%clk 0:00:31]}  Bd7 {[%clk 0:00:59]} 27. Bd3 {[%clk 0:00:23]}  Qg4 {[%clk 0:00:54]} 28. b6 {[%clk 0:00:23]}  Rc8 {[%clk 0:00:53]} 29. Qxf6 {[%clk 0:00:22]}  Qg7 {[%clk 0:00:45]} 30. Qf4+ {[%clk 0:00:20]}  Ka8 {[%clk 0:00:43]} 31. a6 {[%clk 0:00:19]}  axb6 {[%clk 0:00:35]} 32. axb7+ {[%clk 0:00:19]}  Kxb7 {[%clk 0:00:36]} 33. Ba6+ {[%clk 0:00:18]}  Ka7 {[%clk 0:00:20]} 34. Bxc8+ {[%clk 0:00:17]}  Qxa1+ {[%clk 0:00:19]} 35. Kg2 {[%clk 0:00:16]}  Rxc8 {[%clk 0:00:20]} 36. Qxf7 {[%clk 0:00:15]}  Rc7 {[%clk 0:00:19]} 37. Qxh5 {[%clk 0:00:13]}  b5 {[%clk 0:00:19]} 38. Qh8 {[%clk 0:00:09]}  Qxh8 {[%clk 0:00:18]} 0-1


[Site "https://www.chess.com"]

[Event "Titled Tuesday Blitz May 10 Late 2022"]
[White "Szabo, Marton Mihaly"]
[Black "Stremavicius, Titas"]
[WhiteFideId "787086"]
[BlackFideId "12804444"]
[WhiteElo "1984"]
[BlackElo "2404"]
[Result "0-1"]
[Round "03"]
[TimeControl "180+1"]
[Date "2022.05.10"]
[WhiteClock "0:00:03"]
[BlackClock "0:00:32"]

1. e4 {[%clk 0:03:00]}  c5 {[%clk 0:02:59]} 2. c4 {[%clk 0:02:59]}  Nc6 {[%clk 0:02:54]} 3. Nc3 {[%clk 0:02:59]}  g6 {[%clk 0:02:53]} 4. g3 {[%clk 0:02:59]}  Bg7 {[%clk 0:02:53]} 5. Bg2 {[%clk 0:02:59]}  e6 {[%clk 0:02:54]} 6. Nge2 {[%clk 0:02:59]}  a6 {[%clk 0:02:53]} 7. O-O {[%clk 0:03:00]}  Nge7 {[%clk 0:02:53]} 8. d3 {[%clk 0:03:00]}  O-O {[%clk 0:02:52]} 9. Rb1 {[%clk 0:03:00]}  b5 {[%clk 0:02:44]} 10. b3 {[%clk 0:03:00]}  b4 {[%clk 0:02:42]} 11. Na4 {[%clk 0:03:00]}  d6 {[%clk 0:02:42]} 12. Be3 {[%clk 0:03:00]}  e5 {[%clk 0:02:39]} 13. Qd2 {[%clk 0:03:00]}  Rb8 {[%clk 0:02:34]} 14. Bh6 {[%clk 0:02:59]}  f5 {[%clk 0:02:33]} 15. Bxg7 {[%clk 0:02:59]}  Kxg7 {[%clk 0:02:34]} 16. f4 {[%clk 0:03:00]}  Nd4 {[%clk 0:02:30]} 17. Nxd4 {[%clk 0:03:00]}  exd4 {[%clk 0:02:28]} 18. e5 {[%clk 0:02:57]}  dxe5 {[%clk 0:02:18]} 19. fxe5 {[%clk 0:02:53]}  Qc7 {[%clk 0:02:17]} 20. Rbe1 {[%clk 0:02:51]}  Bd7 {[%clk 0:02:15]} 21. e6 {[%clk 0:02:39]}  Bxa4 {[%clk 0:02:14]} 22. bxa4 {[%clk 0:02:40]}  Qd6 {[%clk 0:02:07]} 23. Qf4 {[%clk 0:02:26]}  Rb6 {[%clk 0:02:00]} 24. Re5 {[%clk 0:01:19]}  a5 {[%clk 0:01:52]} 25. h4 {[%clk 0:01:15]}  h6 {[%clk 0:01:51]} 26. g4 {[%clk 0:01:12]}  Qb8 {[%clk 0:01:40]} 27. Rxc5 {[%clk 0:01:06]}  Qxf4 {[%clk 0:01:27]} 28. Rxf4 {[%clk 0:01:07]}  Rxe6 {[%clk 0:01:26]} 29. Rxd4 {[%clk 0:00:46]}  Re1+ {[%clk 0:01:22]} 30. Kh2 {[%clk 0:00:28]}  fxg4 {[%clk 0:01:14]} 31. Rxg4 {[%clk 0:00:28]}  Rf2 {[%clk 0:01:13]} 32. Re4 {[%clk 0:00:19]}  Rxe4 {[%clk 0:01:11]} 33. dxe4 {[%clk 0:00:19]}  Rxa2 {[%clk 0:01:08]} 34. Rxa5 {[%clk 0:00:20]}  Nc6 {[%clk 0:01:08]} 35. Rb5 {[%clk 0:00:19]}  Rxa4 {[%clk 0:01:05]} 36. e5 {[%clk 0:00:18]}  Ra2 {[%clk 0:01:05]} 37. Kg3 {[%clk 0:00:13]}  Nd4 {[%clk 0:01:06]} 38. Rb7+ {[%clk 0:00:13]}  Kf8 {[%clk 0:01:05]} 39. Rxb4 {[%clk 0:00:04]}  Ne2+ {[%clk 0:01:02]} 40. Kf2 {[%clk 0:00:02]}  Nf4+ {[%clk 0:01:02]} 41. Kf3 {[%clk 0:00:02]}  Nxg2 {[%clk 0:01:01]} 42. Rb6 {[%clk 0:00:03]}  Nxh4+ {[%clk 0:01:01]} 43. Kg4 {[%clk 0:00:04]}  Rh2 {[%clk 0:00:52]} 44. Rb8+ {[%clk 0:00:03]}  Ke7 {[%clk 0:00:52]} 45. Rb6 {[%clk 0:00:03]}  Kf7 {[%clk 0:00:47]} 46. Rf6+ {[%clk 0:00:03]}  Kg7 {[%clk 0:00:47]} 47. c5 {[%clk 0:00:04]}  Nf5 {[%clk 0:00:44]} 48. Ra6 {[%clk 0:00:03]}  h5+ {[%clk 0:00:43]} 49. Kf4 {[%clk 0:00:04]}  Rc2 {[%clk 0:00:43]} 50. Ra7+ {[%clk 0:00:04]}  Kh6 {[%clk 0:00:42]} 51. e6 {[%clk 0:00:04]}  Rxc5 {[%clk 0:00:41]} 52. e7 {[%clk 0:00:04]}  Rc8 {[%clk 0:00:41]} 53. Ke5 {[%clk 0:00:05]}  Re8 {[%clk 0:00:41]} 54. Kf6 {[%clk 0:00:04]}  Rxe7 {[%clk 0:00:41]} 55. Ra8 {[%clk 0:00:04]}  Rh7 {[%clk 0:00:40]} 56. Rg8 {[%clk 0:00:04]}  Ne7 {[%clk 0:00:37]} 57. Ra8 {[%clk 0:00:02]}  Nd5+ {[%clk 0:00:36]} 58. Ke5 {[%clk 0:00:02]}  Nb6 {[%clk 0:00:34]} 59. Ra1 {[%clk 0:00:03]}  Rf7 {[%clk 0:00:33]} 60. Ke6 {[%clk 0:00:03]}  Rf2 {[%clk 0:00:33]} 61. Rb1 {[%clk 0:00:03]}  Nc4 {[%clk 0:00:33]} 62. Rb8 {[%clk 0:00:03]}  h4 {[%clk 0:00:32]} 0-1


[Site "https://www.chess.com"]

[Event "Titled Tuesday Blitz May 10 Late 2022"]
[White "Tatarinov, Dmitry"]
[Black "Sadhwani, Raunak"]
[WhiteFideId "24160067"]
[BlackFideId "35093487"]
[WhiteElo "2302"]
[BlackElo "2616"]
[Result "0-1"]
[Round "03"]
[TimeControl "180+1"]
[Date "2022.05.10"]
[WhiteClock "0:00:08"]
[BlackClock "0:00:08"]

1. d4 {[%clk 0:03:00]}  Nf6 {[%clk 0:02:57]} 2. Nf3 {[%clk 0:02:59]}  g6 {[%clk 0:02:57]} 3. g3 {[%clk 0:02:59]}  Bg7 {[%clk 0:02:58]} 4. Bg2 {[%clk 0:03:00]}  O-O {[%clk 0:02:59]} 5. O-O {[%clk 0:03:00]}  d6 {[%clk 0:02:58]} 6. c4 {[%clk 0:03:00]}  Nbd7 {[%clk 0:02:58]} 7. Nc3 {[%clk 0:03:00]}  e5 {[%clk 0:02:59]} 8. e4 {[%clk 0:03:01]}  Re8 {[%clk 0:02:58]} 9. Re1 {[%clk 0:03:00]}  exd4 {[%clk 0:02:53]} 10. Nxd4 {[%clk 0:03:01]}  Nc5 {[%clk 0:02:53]} 11. f3 {[%clk 0:03:01]}  c6 {[%clk 0:02:49]} 12. Be3 {[%clk 0:03:01]}  a5 {[%clk 0:02:48]} 13. Qc2 {[%clk 0:02:59]}  Nfd7 {[%clk 0:02:43]} 14. Rad1 {[%clk 0:02:58]}  Ne5 {[%clk 0:02:43]} 15. b3 {[%clk 0:02:58]}  Qc7 {[%clk 0:02:37]} 16. Bf2 {[%clk 0:02:56]}  h5 {[%clk 0:02:33]} 17. h3 {[%clk 0:02:52]}  Ned7 {[%clk 0:02:32]} 18. f4 {[%clk 0:02:47]}  Nf8 {[%clk 0:02:32]} 19. Ndb5 {[%clk 0:02:30]}  cxb5 {[%clk 0:02:28]} 20. Nxb5 {[%clk 0:02:30]}  Qe7 {[%clk 0:02:23]} 21. Nxd6 {[%clk 0:02:27]}  b6 {[%clk 0:02:21]} 22. Nxe8 {[%clk 0:02:23]}  Qxe8 {[%clk 0:02:22]} 23. e5 {[%clk 0:02:13]}  Rb8 {[%clk 0:02:22]} 24. a3 {[%clk 0:02:11]}  Bf5 {[%clk 0:02:14]} 25. Qc3 {[%clk 0:02:10]}  Qc8 {[%clk 0:01:55]} 26. b4 {[%clk 0:02:07]}  axb4 {[%clk 0:01:51]} 27. axb4 {[%clk 0:02:08]}  Nce6 {[%clk 0:01:45]} 28. h4 {[%clk 0:02:02]}  Nd7 {[%clk 0:01:22]} 29. Rd6 {[%clk 0:01:54]}  Bf8 {[%clk 0:01:15]} 30. Rd2 {[%clk 0:01:54]}  Be7 {[%clk 0:01:06]} 31. Red1 {[%clk 0:01:53]}  Ndf8 {[%clk 0:01:05]} 32. Ra1 {[%clk 0:01:50]}  Qc7 {[%clk 0:00:51]} 33. Rda2 {[%clk 0:01:42]}  Qd8 {[%clk 0:00:50]} 34. Rd2 {[%clk 0:01:39]}  Qe8 {[%clk 0:00:36]} 35. Ra7 {[%clk 0:01:38]}  Bd8 {[%clk 0:00:32]} 36. b5 {[%clk 0:01:32]}  Rc8 {[%clk 0:00:23]} 37. Qb4 {[%clk 0:01:04]}  Rc7 {[%clk 0:00:09]} 38. Ra8 {[%clk 0:01:02]}  Qe7 {[%clk 0:00:07]} 39. Rd6 {[%clk 0:00:55]}  Nd7 {[%clk 0:00:03]} 40. Bc6 {[%clk 0:00:51]}  Kg7 {[%clk 0:00:03]} 41. Qd2 {[%clk 0:00:51]}  Ndc5 {[%clk 0:00:03]} 42. Raxd8 {[%clk 0:00:47]}  Nxd8 {[%clk 0:00:03]} 43. Bxc5 {[%clk 0:00:45]}  Nxc6 {[%clk 0:00:02]} 44. Rxc6 {[%clk 0:00:44]}  bxc5 {[%clk 0:00:01]} 45. Qd6 {[%clk 0:00:39]}  Qxd6 {[%clk 0:00:02]} 46. exd6 {[%clk 0:00:40]}  Rd7 {[%clk 0:00:02]} 47. Kf2 {[%clk 0:00:36]}  Be4 {[%clk 0:00:03]} 48. Rxc5 {[%clk 0:00:28]}  Rxd6 {[%clk 0:00:03]} 49. Rc7 {[%clk 0:00:28]}  Rd3 {[%clk 0:00:03]} 50. b6 {[%clk 0:00:27]}  Rb3 {[%clk 0:00:03]} 51. c5 {[%clk 0:00:26]}  Kf6 {[%clk 0:00:04]} 52. Ke2 {[%clk 0:00:20]}  Ke6 {[%clk 0:00:04]} 53. Kd2 {[%clk 0:00:19]}  f6 {[%clk 0:00:05]} 54. Rc8 {[%clk 0:00:17]}  Kf5 {[%clk 0:00:05]} 55. Rf8 {[%clk 0:00:10]}  Rxg3 {[%clk 0:00:04]} 56. Re8 {[%clk 0:00:08]}  Rb3 {[%clk 0:00:04]} 57. Re7 {[%clk 0:00:05]}  Kxf4 {[%clk 0:00:04]} 58. Re6 {[%clk 0:00:02]}  Kf5 {[%clk 0:00:04]} 59. Rd6 {[%clk 0:00:03]}  Ke5 {[%clk 0:00:04]} 60. Rd8 {[%clk 0:00:03]}  g5 {[%clk 0:00:04]} 61. Re8+ {[%clk 0:00:03]}  Kf4 {[%clk 0:00:04]} 62. hxg5 {[%clk 0:00:04]}  fxg5 {[%clk 0:00:05]} 63. Rf8+ {[%clk 0:00:05]}  Kg4 {[%clk 0:00:05]} 64. Re8 {[%clk 0:00:05]}  Bf3 {[%clk 0:00:06]} 65. Re3 {[%clk 0:00:06]}  Rxe3 {[%clk 0:00:05]} 66. Kxe3 {[%clk 0:00:07]}  h4 {[%clk 0:00:06]} 67. Kd4 {[%clk 0:00:06]}  h3 {[%clk 0:00:06]} 68. Ke5 {[%clk 0:00:07]}  h2 {[%clk 0:00:06]} 69. c6 {[%clk 0:00:08]}  Bxc6 {[%clk 0:00:07]} 70. Kd6 {[%clk 0:00:08]}  Bb7 {[%clk 0:00:08]} 71. Kc7 {[%clk 0:00:08]}  h1=Q {[%clk 0:00:08]} 0-1


[Site "https://www.chess.com"]

[Event "Titled Tuesday Blitz May 10 Late 2022"]
[White "Tomaszewski, Kacper"]
[Black "Radovanovic, Mihajlo"]
[WhiteFideId "1127373"]
[BlackFideId "940313"]
[WhiteElo "2153"]
[BlackElo "2394"]
[Result "0-1"]
[Round "03"]
[TimeControl "180+1"]
[Date "2022.05.11"]
[WhiteClock "0:00:02"]
[BlackClock "0:00:07"]

1. c4 {[%clk 0:03:00]}  c5 {[%clk 0:02:56]} 2. Nf3 {[%clk 0:02:59]}  Nc6 {[%clk 0:02:56]} 3. e3 {[%clk 0:02:58]}  Nf6 {[%clk 0:02:51]} 4. b3 {[%clk 0:02:58]}  e5 {[%clk 0:02:47]} 5. d3 {[%clk 0:02:56]}  d5 {[%clk 0:02:45]} 6. cxd5 {[%clk 0:02:56]}  Nxd5 {[%clk 0:02:45]} 7. Bb2 {[%clk 0:02:54]}  f6 {[%clk 0:02:45]} 8. Be2 {[%clk 0:02:53]}  Be7 {[%clk 0:02:44]} 9. O-O {[%clk 0:02:51]}  O-O {[%clk 0:02:44]} 10. Nbd2 {[%clk 0:02:46]}  Be6 {[%clk 0:02:45]} 11. a3 {[%clk 0:02:45]}  Rc8 {[%clk 0:02:45]} 12. Rc1 {[%clk 0:02:41]}  Qd7 {[%clk 0:02:46]} 13. Qc2 {[%clk 0:02:41]}  Rfd8 {[%clk 0:02:46]} 14. Qb1 {[%clk 0:02:40]}  Bf8 {[%clk 0:02:45]} 15. Bd1 {[%clk 0:02:36]}  b6 {[%clk 0:02:39]} 16. Re1 {[%clk 0:02:36]}  Qf7 {[%clk 0:02:39]} 17. h4 {[%clk 0:02:30]}  Nde7 {[%clk 0:02:27]} 18. Ba1 {[%clk 0:02:28]}  Nf5 {[%clk 0:02:25]} 19. Ne4 {[%clk 0:02:16]}  Nd6 {[%clk 0:02:17]} 20. Ng3 {[%clk 0:02:13]}  Qd7 {[%clk 0:02:09]} 21. h5 {[%clk 0:02:04]}  Nf5 {[%clk 0:02:08]} 22. Ne4 {[%clk 0:01:44]}  Qxd3 {[%clk 0:02:03]} 23. Bc2 {[%clk 0:01:43]}  Qa6 {[%clk 0:02:02]} 24. Nxf6+ {[%clk 0:01:41]}  gxf6 {[%clk 0:01:58]} 25. Bxf5 {[%clk 0:01:41]}  Bxf5 {[%clk 0:01:45]} 26. Qxf5 {[%clk 0:01:42]}  Rd6 {[%clk 0:01:37]} 27. Rc4 {[%clk 0:01:31]}  Ne7 {[%clk 0:01:31]} 28. Qg4+ {[%clk 0:01:29]}  Kf7 {[%clk 0:01:28]} 29. h6 {[%clk 0:01:21]}  Ng6 {[%clk 0:01:23]} 30. Ra4 {[%clk 0:01:15]}  Qb7 {[%clk 0:01:21]} 31. Rxa7 {[%clk 0:01:11]}  Qxa7 {[%clk 0:01:21]} 32. Qxc8 {[%clk 0:01:11]}  Bxh6 {[%clk 0:01:21]} 33. b4 {[%clk 0:01:03]}  Bf8 {[%clk 0:01:09]} 34. bxc5 {[%clk 0:01:00]}  bxc5 {[%clk 0:01:09]} 35. Rb1 {[%clk 0:00:58]}  Rb6 {[%clk 0:01:06]} 36. Rd1 {[%clk 0:00:49]}  Be7 {[%clk 0:00:45]} 37. Qf5 {[%clk 0:00:44]}  Qxa3 {[%clk 0:00:43]} 38. Bxe5 {[%clk 0:00:35]}  Qa4 {[%clk 0:00:35]} 39. Rd7 {[%clk 0:00:30]}  Re6 {[%clk 0:00:34]} 40. Ng5+ {[%clk 0:00:29]}  Ke8 {[%clk 0:00:34]} 41. Qxe6 {[%clk 0:00:28]}  Qxd7 {[%clk 0:00:33]} 42. Qf7+ {[%clk 0:00:22]}  Kd8 {[%clk 0:00:33]} 43. Bxf6 {[%clk 0:00:20]}  Qd1+ {[%clk 0:00:21]} 44. Kh2 {[%clk 0:00:20]}  Qh5+ {[%clk 0:00:22]} 45. Nh3 {[%clk 0:00:20]}  Bxf6 {[%clk 0:00:19]} 46. Qxf6+ {[%clk 0:00:21]}  Kc7 {[%clk 0:00:18]} 47. Qf7+ {[%clk 0:00:21]}  Kc6 {[%clk 0:00:18]} 48. Qe6+ {[%clk 0:00:21]}  Kb5 {[%clk 0:00:19]} 49. Qd7+ {[%clk 0:00:20]}  Kb4 {[%clk 0:00:18]} 50. Qb7+ {[%clk 0:00:20]}  Kc4 {[%clk 0:00:19]} 51. Qe4+ {[%clk 0:00:20]}  Kb5 {[%clk 0:00:19]} 52. Qb7+ {[%clk 0:00:20]}  Ka4 {[%clk 0:00:18]} 53. g3 {[%clk 0:00:17]}  Qe5 {[%clk 0:00:15]} 54. Kg2 {[%clk 0:00:16]}  c4 {[%clk 0:00:14]} 55. Qa6+ {[%clk 0:00:15]}  Kb3 {[%clk 0:00:14]} 56. Qb6+ {[%clk 0:00:15]}  Kc2 {[%clk 0:00:14]} 57. Nf4 {[%clk 0:00:15]}  Nxf4+ {[%clk 0:00:13]} 58. gxf4 {[%clk 0:00:15]}  Qe4+ {[%clk 0:00:13]} 59. Kg3 {[%clk 0:00:14]}  c3 {[%clk 0:00:14]} 60. Qa6 {[%clk 0:00:08]}  Kd2 {[%clk 0:00:11]} 61. Qd6+ {[%clk 0:00:07]}  Qd3 {[%clk 0:00:11]} 62. Qb4 {[%clk 0:00:07]}  Ke2 {[%clk 0:00:10]} 63. Qb7 {[%clk 0:00:01]}  c2 {[%clk 0:00:10]} 64. Qf3+ {[%clk 0:00:02]}  Kd2 {[%clk 0:00:07]} 0-1


[Site "https://www.chess.com"]

[Event "Titled Tuesday Blitz May 10 Late 2022"]
[White "Vajda, Levente"]
[Black "Kalajzic, Ivan"]
[WhiteFideId "1203975"]
[BlackFideId "14506378"]
[WhiteElo "2573"]
[BlackElo "2163"]
[Result "1-0"]
[Round "03"]
[TimeControl "180+1"]
[Date "2022.05.11"]
[WhiteClock "0:01:51"]
[BlackClock "0:01:27"]

1. e4 {[%clk 0:03:00]}  Nc6 {[%clk 0:02:59]} 2. Nf3 {[%clk 0:03:00]}  d6 {[%clk 0:02:59]} 3. d4 {[%clk 0:02:59]}  Bg4 {[%clk 0:02:58]} 4. d5 {[%clk 0:02:59]}  Ne5 {[%clk 0:02:57]} 5. Be2 {[%clk 0:02:55]}  Nxf3+ {[%clk 0:02:56]} 6. Bxf3 {[%clk 0:02:55]}  Bxf3 {[%clk 0:02:56]} 7. Qxf3 {[%clk 0:02:56]}  g6 {[%clk 0:02:57]} 8. O-O {[%clk 0:02:55]}  Bg7 {[%clk 0:02:57]} 9. c3 {[%clk 0:02:52]}  Nf6 {[%clk 0:02:56]} 10. Bg5 {[%clk 0:02:51]}  Nd7 {[%clk 0:02:56]} 11. Nd2 {[%clk 0:02:49]}  O-O {[%clk 0:02:56]} 12. Qe2 {[%clk 0:02:47]}  h6 {[%clk 0:02:43]} 13. Bh4 {[%clk 0:02:43]}  g5 {[%clk 0:02:42]} 14. Bg3 {[%clk 0:02:42]}  e5 {[%clk 0:02:29]} 15. dxe6 {[%clk 0:02:26]}  fxe6 {[%clk 0:02:29]} 16. f4 {[%clk 0:02:25]}  gxf4 {[%clk 0:02:16]} 17. Bxf4 {[%clk 0:02:26]}  Ne5 {[%clk 0:02:09]} 18. Bxe5 {[%clk 0:02:11]}  Bxe5 {[%clk 0:02:10]} 19. Nf3 {[%clk 0:02:12]}  Bg7 {[%clk 0:01:55]} 20. e5 {[%clk 0:02:11]}  d5 {[%clk 0:01:53]} 21. Nd4 {[%clk 0:02:03]}  Qd7 {[%clk 0:01:46]} 22. Qg4 {[%clk 0:02:03]}  Rfe8 {[%clk 0:01:41]} 23. Rf6 {[%clk 0:02:01]}  c5 {[%clk 0:01:33]} 24. Nxe6 {[%clk 0:01:57]}  Re7 {[%clk 0:01:29]} 25. Raf1 {[%clk 0:01:54]}  Rae8 {[%clk 0:01:28]} 26. Rf8+ {[%clk 0:01:51]}  Rxf8 {[%clk 0:01:26]} 27. Rxf8+ {[%clk 0:01:50]}  Kh7 {[%clk 0:01:27]} 28. Qf5# {[%clk 0:01:51]} 1-0


[Site "https://www.chess.com"]

[Event "Titled Tuesday Blitz May 10 Late 2022"]
[White "Vovk, Orest"]
[Black "Lashkin, Jegor"]
[WhiteFideId "14113490"]
[BlackFideId "13907808"]
[WhiteElo "2532"]
[BlackElo "2817"]
[Result "0-1"]
[Round "03"]
[TimeControl "180+1"]
[Date "2022.05.11"]
[WhiteClock "0:00:55"]
[BlackClock "0:01:49"]

1. h4 {[%clk 0:03:00]}  d5 {[%clk 0:02:59]} 2. h5 {[%clk 0:03:00]}  e5 {[%clk 0:02:59]} 3. h6 {[%clk 0:03:01]}  g6 {[%clk 0:03:00]} 4. d4 {[%clk 0:03:01]}  e4 {[%clk 0:02:58]} 5. Bf4 {[%clk 0:03:01]}  Nc6 {[%clk 0:02:55]} 6. e3 {[%clk 0:03:01]}  Nf6 {[%clk 0:02:54]} 7. c4 {[%clk 0:03:01]}  Be6 {[%clk 0:02:49]} 8. Nc3 {[%clk 0:02:59]}  dxc4 {[%clk 0:02:49]} 9. Qa4 {[%clk 0:02:51]}  Bb4 {[%clk 0:02:49]} 10. a3 {[%clk 0:02:49]}  Bxc3+ {[%clk 0:02:48]} 11. bxc3 {[%clk 0:02:50]}  Qd5 {[%clk 0:02:48]} 12. Rb1 {[%clk 0:02:47]}  O-O {[%clk 0:02:38]} 13. Bxc7 {[%clk 0:02:31]}  Qd7 {[%clk 0:02:34]} 14. Bg3 {[%clk 0:02:22]}  Nd5 {[%clk 0:02:34]} 15. Qc2 {[%clk 0:02:18]}  b5 {[%clk 0:02:19]} 16. Ne2 {[%clk 0:02:15]}  a5 {[%clk 0:02:17]} 17. Rxb5 {[%clk 0:02:11]}  Ncb4 {[%clk 0:02:15]} 18. Rxb4 {[%clk 0:01:59]}  axb4 {[%clk 0:02:14]} 19. axb4 {[%clk 0:01:59]}  Ra1+ {[%clk 0:02:14]} 20. Nc1 {[%clk 0:01:59]}  Rfa8 {[%clk 0:02:13]} 21. Be2 {[%clk 0:01:47]}  R8a2 {[%clk 0:02:04]} 22. Qxa2 {[%clk 0:01:43]}  Rxa2 {[%clk 0:02:02]} 23. Nxa2 {[%clk 0:01:43]}  Qa4 {[%clk 0:02:03]} 24. Bxc4 {[%clk 0:01:42]}  Nxc3 {[%clk 0:01:54]} 25. Nxc3 {[%clk 0:01:28]}  Qa1+ {[%clk 0:01:54]} 26. Nd1 {[%clk 0:01:22]}  Bxc4 {[%clk 0:01:54]} 27. Kd2 {[%clk 0:01:13]}  Qa2+ {[%clk 0:01:54]} 28. Kc3 {[%clk 0:01:08]}  Bd3 {[%clk 0:01:54]} 29. b5 {[%clk 0:00:57]}  Qa3+ {[%clk 0:01:49]} 30. Kd2 {[%clk 0:00:56]}  Qb4+ {[%clk 0:01:48]} 31. Kc1 {[%clk 0:00:54]}  Qb1+ {[%clk 0:01:49]} 32. Kd2 {[%clk 0:00:55]}  Qc2+ {[%clk 0:01:49]} 0-1


[Site "https://www.chess.com"]

[Event "Titled Tuesday Blitz May 10 Late 2022"]
[White "Xiong, Jeffery"]
[Black "Villiers, Thomas"]
[WhiteFideId "2047640"]
[BlackFideId "427209"]
[WhiteElo "2727"]
[BlackElo "2164"]
[Result "1-0"]
[Round "03"]
[TimeControl "180+1"]
[Date "2022.05.10"]
[WhiteClock "0:01:05"]
[BlackClock "0:00:40"]

1. e4 {[%clk 0:03:00]}  c5 {[%clk 0:02:56]} 2. Nf3 {[%clk 0:03:00]}  d6 {[%clk 0:02:53]} 3. Nc3 {[%clk 0:03:01]}  Nf6 {[%clk 0:02:47]} 4. d4 {[%clk 0:03:01]}  cxd4 {[%clk 0:02:47]} 5. Qxd4 {[%clk 0:03:02]}  Nc6 {[%clk 0:02:43]} 6. Qd3 {[%clk 0:03:02]}  e6 {[%clk 0:02:40]} 7. Bf4 {[%clk 0:03:01]}  Be7 {[%clk 0:02:34]} 8. O-O-O {[%clk 0:03:00]}  e5 {[%clk 0:02:26]} 9. Bg5 {[%clk 0:02:57]}  Be6 {[%clk 0:02:26]} 10. Bxf6 {[%clk 0:02:48]}  gxf6 {[%clk 0:02:27]} 11. Nd5 {[%clk 0:02:48]}  Qa5 {[%clk 0:02:25]} 12. a3 {[%clk 0:02:46]}  O-O-O {[%clk 0:02:21]} 13. Be2 {[%clk 0:02:28]}  Kb8 {[%clk 0:02:21]} 14. b4 {[%clk 0:02:19]}  Qa4 {[%clk 0:02:19]} 15. Kb2 {[%clk 0:02:20]}  Rd7 {[%clk 0:02:11]} 16. Nc3 {[%clk 0:02:15]}  Qa6 {[%clk 0:02:07]} 17. Qxa6 {[%clk 0:02:01]}  bxa6 {[%clk 0:02:08]} 18. Bxa6 {[%clk 0:02:01]}  f5 {[%clk 0:02:04]} 19. exf5 {[%clk 0:01:58]}  Bxf5 {[%clk 0:02:05]} 20. Nd5 {[%clk 0:01:59]}  Bd8 {[%clk 0:02:02]} 21. Bb5 {[%clk 0:01:55]}  Kb7 {[%clk 0:01:58]} 22. Rhe1 {[%clk 0:01:54]}  Bb6 {[%clk 0:01:32]} 23. Ng5 {[%clk 0:01:12]}  Rg8 {[%clk 0:01:13]} 24. Ne4 {[%clk 0:01:04]}  Bxe4 {[%clk 0:01:05]} 25. Rxe4 {[%clk 0:01:05]}  Rxg2 {[%clk 0:01:02]} 26. Rc4 {[%clk 0:01:05]}  Nb8 {[%clk 0:00:48]} 27. Nxb6 {[%clk 0:01:05]}  axb6 {[%clk 0:00:46]} 28. Bxd7 {[%clk 0:01:05]}  Nxd7 {[%clk 0:00:46]} 29. Rxd6 {[%clk 0:01:05]}  Nb8 {[%clk 0:00:41]} 30. Rf6 {[%clk 0:01:04]}  Rxh2 {[%clk 0:00:40]} 31. Rxf7+ {[%clk 0:01:04]}  Ka6 {[%clk 0:00:40]} 32. a4 {[%clk 0:01:05]} 1-0


[Site "https://www.chess.com"]